[Event "WSCC 65 Open 2017"]
[Site "?"]
[Date "2017.11.14"]
[Round "7"]
[White "Trois, Francisco R T"]
[Black "Lisenko, Alexander V"]
[Result "0-1"]
[ECO "A04"]
[WhiteElo "2184"]
[BlackElo "2372"]
[PlyCount "60"]
[EventDate "2017.??.??"]
[EventType "swiss"]
[EventCountry "ITA"]
[SourceTitle "Acqui Terme"]
[TimeControl "40/5400+30:1800+30"]
[WhiteClock "0:08:07"]
[BlackClock "0:25:17"]

1. Nf3 {[%emt 0:00:00]} c5 {[%emt 0:00:05]} 2. c4 {[%emt 0:00:48]} Nc6 {[%emt 0:00:37]} 3. Nc3 {[%emt 0:01:41]} g6 {[%emt 0:00:18]} 4. e3 {[%emt 0:01:13]} Nf6 {[%emt 0:01:56]} 5. d4 {[%emt 0:05:22]} cxd4 {[%emt 0:00:30]} 6. Nxd4 {[%emt 0:04:29]} Bg7 {[%emt 0:00:14]} 7. Be2 {[%emt 0:02:17]} O-O 8. O-O d6 {[%emt 0:04:41]} 9. Nc2 {[%emt 0:10:29]} Bf5 {[%emt 0:05:29]} 10. Bd3 {[%emt 0:08:24]} Bxd3 {[%emt 0:07:44]} 11. Qxd3 {[%emt 0:00:02]} Ne5 {[%emt 0:00:14]} 12. Qe2 {[%emt 0:00:19]} Rc8 {[%emt 0:00:10]} 13. b3 {[%emt 0:02:17]} Qb6 {[%emt 0:05:33]} 14. Rd1 {[%emt 0:02:59]} e6 {[%emt 0:18:22]} 15. e4 {[%emt 0:06:04]} d5 {[%emt 0:08:26]} 16. exd5 {[%emt 0:11:09]} exd5 {[%emt 0:00:34]} 17. Be3 {[%emt 0:00:57]} Qa6 {[%emt 0:08:08]} 18. Nb4 {[%emt 0:03:38]} Qa3 {[%emt 0:03:00]} 19. Nbxd5 {[%emt 0:01:13]} Nxd5 {[%emt 0:00:52]} 20. Nxd5 {[%emt 0:00:15]} Rfe8 {[%emt 0:00:15]} 21. Qd2 {[%emt 0:06:06]} Nc6 {[%emt 0:02:21]} 22. Rab1 {[%emt 0:03:51]} Qd6 {[%emt 0:02:30]} 23. h3 {[%emt 0:00:43]} Qe6 {[%emt 0:00:32]} 24. Re1 {[%emt 0:04:28]} Qf5 {[%emt 0:00:30]} 25. Rbd1 {[%emt 0:00:41]} Re4 {[%emt 0:02:45]} 26. Bh6 {[%emt 0:01:46]} Rd4 {[%emt 0:01:07]} 27. Qe3 {[%emt 0:00:56]} Rxd1 {[%emt 0:00:37]} 28. Rxd1 {[%emt 0:00:01]} Qh5 {[%emt 0:00:14]} 29. Re1 {[%emt 0:14:05]} Qxh6 {[%emt 0:02:22]} 30. Nf6+ {[%emt 0:00:40]} Kh8 {[%emt 0:00:07]} 0-1

[Event "WSCC 65 Open 2017"]
[Site "?"]
[Date "2017.11.14"]
[Round "7"]
[White "Beltz, Robert"]
[Black "Vogt, Lothar"]
[Result "0-1"]
[ECO "B22"]
[WhiteElo "2158"]
[BlackElo "2398"]
[PlyCount "76"]
[EventDate "2017.??.??"]
[EventType "swiss"]
[EventCountry "ITA"]
[SourceTitle "Acqui Terme"]
[TimeControl "40/5400+30:1800+30"]
[WhiteClock "0:06:20"]
[BlackClock "0:09:52"]

1. e4 {[%emt 0:00:00]} c5 {[%emt 0:00:02]} 2. c3 {[%emt 0:00:00]} Nf6 {[%emt 0:01:42]} 3. d3 {[%emt 0:02:48]} d5 {[%emt 0:01:47]} 4. e5 {[%emt 0:01:39]} Nfd7 {[%emt 0:03:04]} 5. f4 {[%emt 0:05:59]} e6 {[%emt 0:02:44]} 6. Nf3 {[%emt 0:07:09]} Be7 {[%emt 0:00:05]} 7. c4 {[%emt 0:03:06]} Nb6 {[%emt 0:07:31]} 8. Nc3 {[%emt 0:07:47]} f5 {[%emt 0:04:19]} 9. cxd5 {[%emt 0:05:10]} Nxd5 {[%emt 0:00:19]} 10. Nxd5 {[%emt 0:05:55]} Qxd5 {[%emt 0:00:42]} 11. d4 {[%emt 0:00:02]} Nc6 {[%emt 0:02:29]} 12. Bb5 {[%emt 0:08:23]} cxd4 {[%emt 0:04:46]} 13. Qb3 {[%emt 0:07:24]} Qxb3 {[%emt 0:04:32]} 14. axb3 {[%emt 0:01:22]} Bd7 {[%emt 0:00:03]} 15. Bd2 {[%emt 0:04:19]} Bc5 {[%emt 0:03:56]} 16. Rc1 {[%emt 0:03:01]} Bb6 {[%emt 0:01:01]} 17. Ba4 {[%emt 0:11:40]} O-O {[%emt 0:05:54]} 18. Ke2 {[%emt 0:01:29]} a6 {[%emt 0:06:25]} 19. Rhd1 {[%emt 0:06:24]} Ba7 {[%emt 0:01:02]} 20. b4 {[%emt 0:01:29]} Rac8 {[%emt 0:04:06]} 21. b5 {[%emt 0:02:36]} axb5 {[%emt 0:08:15]} 22. Bc2 {[%emt 0:05:07]} h6 {[%emt 0:06:49]} 23. Bd3 {[%emt 0:00:04]} Rfd8 {[%emt 0:00:55]} 24. Be1 {[%emt 0:01:27]} Be8 {[%emt 0:03:01]} 25. Rc2 {[%emt 0:01:19]} Rd5 {[%emt 0:01:17]} 26. h4 {[%emt 0:01:29]} Bh5 {[%emt 0:03:00]} 27. Rdc1 {[%emt 0:00:58]} g5 {[%emt 0:02:27]} 28. hxg5 {[%emt 0:00:54]} hxg5 {[%emt 0:00:03]} 29. Kf2 {[%emt 0:00:30]} gxf4 {[%emt 0:01:35]} 30. Bd2 {[%emt 0:00:01]} Rcd8 {[%emt 0:07:03]} 31. Bxf4 {[%emt 0:00:05]} Bb8 {[%emt 0:00:53]} 32. Ng5 {[%emt 0:00:37]} Bf7 {[%emt 0:03:31]} 33. Rc5 {[%emt 0:00:52]} Bxe5 {[%emt 0:00:47]} 34. Bxe5 {[%emt 0:00:15]} Nxe5 {[%emt 0:01:02]} 35. Bxb5 {[%emt 0:00:04]} Kg7 {[%emt 0:01:07]} 36. Nxf7 {[%emt 0:00:27]} Kxf7 {[%emt 0:00:37]} 37. Rc7+ {[%emt 0:00:30]} Kf6 {[%emt 0:00:12]} 38. Rxb7 {[%emt 0:00:19]} Rxb5 {[%emt 0:00:35]} 0-1

[Event "WSCC 65 Open 2017"]
[Site "?"]
[Date "2017.11.15"]
[Round "8"]
[White "Vasiukov, Evgeni"]
[Black "Povah, Nigel E"]
[Result "1/2-1/2"]
[ECO "B30"]
[WhiteElo "2404"]
[BlackElo "2295"]
[PlyCount "87"]
[EventDate "2017.??.??"]
[EventType "swiss"]
[EventCountry "ITA"]
[SourceTitle "Acqui Terme"]
[TimeControl "40/5400+30:1800+30"]
[WhiteClock "0:05:19"]
[BlackClock "0:04:17"]

1. e4 {[%emt 0:00:00]} c5 {[%emt 0:00:07]} 2. Nf3 {[%emt 0:00:00]} Nc6 {[%emt 0:00:05]} 3. Bb5 {[%emt 0:00:03]} Nf6 {[%emt 0:00:11]} 4. Qe2 {[%emt 0:00:46]} g6 {[%emt 0:00:36]} 5. O-O {[%emt 0:00:54]} Bg7 {[%emt 0:00:10]} 6. c3 {[%emt 0:00:53]} O-O {[%emt 0:00:21]} 7. h3 {[%emt 0:00:05]} e5 {[%emt 0:04:59]} 8. d3 {[%emt 0:02:03]} Qc7 {[%emt 0:04:00]} 9. Be3 {[%emt 0:03:20]} d6 {[%emt 0:00:46]} 10. Nbd2 {[%emt 0:01:41]} a6 {[%emt 0:08:47]} 11. Ba4 {[%emt 0:02:04]} Re8 {[%emt 0:09:06]} 12. Rfc1 {[%emt 0:05:30]} b6 {[%emt 0:18:52]} 13. b4 {[%emt 0:13:15]} Bb7 {[%emt 0:11:04]} 14. Bb3 {[%emt 0:03:14]} h6 {[%emt 0:01:15]} 15. a4 {[%emt 0:00:48]} Qe7 {[%emt 0:01:57]} 16. Rab1 {[%emt 0:13:01]} Rab8 {[%emt 0:02:16]} 17. bxc5 {[%emt 0:06:27]} bxc5 {[%emt 0:01:14]} 18. Nc4 {[%emt 0:03:27]} Bc8 {[%emt 0:02:08]} 19. Qd2 {[%emt 0:14:34]} Kh7 {[%emt 0:00:49]} 20. Qa2 {[%emt 0:01:37]} Be6 {[%emt 0:01:04]} 21. Ncd2 {[%emt 0:01:11]} Na5 {[%emt 0:04:47]} 22. Bxe6 {[%emt 0:01:22]} Qxe6 {[%emt 0:00:11]} 23. Qxe6 {[%emt 0:01:31]} fxe6 {[%emt 0:00:05]} 24. d4 {[%emt 0:03:34]} exd4 {[%emt 0:03:41]} 25. cxd4 {[%emt 0:00:02]} cxd4 {[%emt 0:04:49]} 26. Bxd4 {[%emt 0:01:05]} Rxb1 {[%emt 0:04:23]} 27. Rxb1 {[%emt 0:00:18]} Nd7 {[%emt 0:01:03]} 28. Bb6 {[%emt 0:02:36]} Nc6 {[%emt 0:02:57]} 29. Bc7 {[%emt 0:00:16]} d5 {[%emt 0:01:06]} 30. Bd6 {[%emt 0:01:43]} Na5 {[%emt 0:01:37]} 31. Rc1 {[%emt 0:01:32]} Nc4 {[%emt 0:03:57]} 32. Nxc4 {[%emt 0:02:51]} Rc8 {[%emt 0:00:14]} 33. e5 {[%emt 0:01:19]} dxc4 {[%emt 0:00:36]} 34. a5 {[%emt 0:00:29]} g5 {[%emt 0:02:23]} 35. Kf1 {[%emt 0:00:24]} Kg6 {[%emt 0:00:14]} 36. Ke2 {[%emt 0:03:11]} h5 {[%emt 0:02:07]} 37. g4 {[%emt 0:00:21]} hxg4 {[%emt 0:00:08]} 38. hxg4 {[%emt 0:00:01]} c3 {[%emt 0:00:35]} 39. Kd3 {[%emt 0:05:21]} Nc5+ {[%emt 0:01:18]} 40. Bxc5 {[%emt 0:00:56]} Rxc5 {[%emt 0:30:07]} 41. Rxc3 {[%emt 0:30:37]} Rxa5 {[%emt 0:00:28]} 42. Rc6 {[%emt 0:01:57]} Bxe5 {[%emt 0:01:04]} 43. Nxe5+ {[%emt 0:00:15]} Rxe5 {[%emt 0:00:06]} 44. Rxa6 {[%emt 0:00:07]} 1/2-1/2

[Event "WSCC 65 Open 2017"]
[Site "?"]
[Date "2017.11.15"]
[Round "8"]
[White "Lisenko, Alexander V"]
[Black "Primbetov, Marat"]
[Result "1/2-1/2"]
[ECO "E62"]
[WhiteElo "2372"]
[BlackElo "2222"]
[PlyCount "25"]
[EventDate "2017.??.??"]
[EventType "swiss"]
[EventCountry "ITA"]
[SourceTitle "Acqui Terme"]
[TimeControl "40/5400+30:1800+30"]

1. c4 Nf6 2. g3 g6 3. Bg2 Bg7 4. Nf3 O-O 5. O-O d6 6. d4 c6 7. Nc3 Bf5 8. Nh4 Be6 9. Qd3 d5 10. c5 Qd7 11. Rd1 Bh3 12. Bh1 Qc8 13. b4 1/2-1/2

[Event "WSCC 65 Open 2017"]
[Site "?"]
[Date "2017.11.15"]
[Round "8"]
[White "Rooze, Jan"]
[Black "Boehnisch, Manfred"]
[Result "1-0"]
[ECO "A06"]
[WhiteElo "2314"]
[BlackElo "2285"]
[PlyCount "93"]
[EventDate "2017.??.??"]
[EventType "swiss"]
[EventCountry "ITA"]
[SourceTitle "Acqui Terme"]
[TimeControl "40/5400+30:1800+30"]
[WhiteClock "0:15:07"]
[BlackClock "0:28:27"]

1. Nf3 {[%emt 0:00:00]} d5 {[%emt 0:00:17]} 2. c4 {[%emt 0:00:00]} c6 {[%emt 0:00:13]} 3. e3 {[%emt 0:00:00]} Nf6 {[%emt 0:00:31]} 4. Nc3 {[%emt 0:00:00]} a6 {[%emt 0:02:10]} 5. Qc2 {[%emt 0:08:08]} g6 {[%emt 0:03:11]} 6. d4 {[%emt 0:04:04]} Bg7 {[%emt 0:01:44]} 7. Bd2 {[%emt 0:13:57]} O-O {[%emt 0:04:42]} 8. Rc1 {[%emt 0:06:09]} Bf5 {[%emt 0:27:39]} 9. Bd3 {[%emt 0:01:07]} Bxd3 {[%emt 0:02:43]} 10. Qxd3 {[%emt 0:00:07]} dxc4 {[%emt 0:02:08]} 11. Qxc4 {[%emt 0:00:10]} Nbd7 {[%emt 0:00:39]} 12. O-O {[%emt 0:03:14]} Re8 {[%emt 0:04:51]} 13. Rfd1 {[%emt 0:01:40]} e5 {[%emt 0:01:11]} 14. Ne2 {[%emt 0:12:51]} exd4 {[%emt 0:01:58]} 15. Nexd4 {[%emt 0:03:53]} Ne4 {[%emt 0:00:00]} 16. Be1 {[%emt 0:03:16]} Qe7 {[%emt 0:02:28]} 17. Qb3 {[%emt 0:05:03]} c5 {[%emt 0:03:12]} 18. Ne2 {[%emt 0:00:28]} b5 {[%emt 0:00:41]} 19. Nf4 {[%emt 0:01:22]} c4 {[%emt 0:04:03]} 20. Qc2 {[%emt 0:00:23]} Ndc5 {[%emt 0:01:37]} 21. b3 {[%emt 0:02:32]} cxb3 {[%emt 0:03:31]} 22. axb3 {[%emt 0:00:06]} Qb7 {[%emt 0:00:21]} 23. Bb4 {[%emt 0:03:03]} Rac8 {[%emt 0:00:54]} 24. Qa2 {[%emt 0:02:44]} Red8 {[%emt 0:03:13]} 25. h4 {[%emt 0:04:27]} Rxd1+ {[%emt 0:00:51]} 26. Rxd1 h6 {[%emt 0:00:16]} 27. Nd4 {[%emt 0:04:05]} Be5 {[%emt 0:03:00]} 28. f3 {[%emt 0:03:00]} Nf6 {[%emt 0:03:10]} 29. Qb1 {[%emt 0:03:05]} h5 {[%emt 0:10:57]} 30. Nxg6 {[%emt 0:01:18]} Bxd4 {[%emt 0:04:12]} 31. exd4 {[%emt 0:03:22]} Kg7 {[%emt 0:00:52]} 32. dxc5 {[%emt 0:03:43]} fxg6 {[%emt 0:00:07]} 33. Rd6 {[%emt 0:00:15]} Rc6 {[%emt 0:00:41]} 34. Qd3 {[%emt 0:00:42]} Kf7 {[%emt 0:01:03]} 35. Qd4 {[%emt 0:03:34]} Rxd6 {[%emt 0:00:16]} 36. cxd6 {[%emt 0:00:51]} Qd7 {[%emt 0:00:57]} 37. Bc3 {[%emt 0:01:19]} Ne8 {[%emt 0:00:20]} 38. Qd5+ {[%emt 0:01:03]} Kf8 {[%emt 0:00:40]} 39. Be5 {[%emt 0:01:40]} a5 {[%emt 0:00:20]} 40. Bf4 {[%emt 0:00:25]} Kg7 {[%emt 0:31:56]} 41. Be5+ {[%emt 0:07:24]} Kh7 {[%emt 0:00:00]} 42. Qd3 {[%emt 0:04:40]} a4 {[%emt 0:00:00]} 43. bxa4 {[%emt 0:01:27]} bxa4 {[%emt 0:00:00]} 44. g4 {[%emt 0:00:13]} Ng7 {[%emt 0:00:00]} 45. gxh5 {[%emt 0:01:56]} Nxh5 {[%emt 0:00:00]} 46. Qc2 {[%emt 0:03:35]} Qh3 {[%emt 0:00:00]} 47. Qc7+ {[%emt 0:02:02]} 1-0

[Event "WSCC 65 Open 2017"]
[Site "?"]
[Date "2017.11.15"]
[Round "8"]
[White "Stebbings, Anthony J"]
[Black "Beltz, Robert"]
[Result "0-1"]
[ECO "B63"]
[WhiteElo "2301"]
[BlackElo "2158"]
[PlyCount "56"]
[EventDate "2017.??.??"]
[EventType "swiss"]
[EventCountry "ITA"]
[SourceTitle "Acqui Terme"]
[TimeControl "40/5400+30:1800+30"]
[WhiteClock "0:20:16"]
[BlackClock "0:34:23"]

1. e4 {[%emt 0:00:00]} c5 {[%emt 0:01:11]} 2. Nf3 {[%emt 0:00:00]} Nc6 {[%emt 0:00:10]} 3. d4 {[%emt 0:00:00]} cxd4 {[%emt 0:00:08]} 4. Nxd4 {[%emt 0:00:00]} Nf6 {[%emt 0:00:15]} 5. Nc3 {[%emt 0:00:00]} d6 {[%emt 0:00:28]} 6. Bg5 {[%emt 0:00:06]} e6 {[%emt 0:02:12]} 7. Qd2 {[%emt 0:00:25]} Be7 {[%emt 0:01:22]} 8. O-O-O {[%emt 0:00:18]} O-O {[%emt 0:02:46]} 9. Nb3 {[%emt 0:04:09]} a6 {[%emt 0:03:00]} 10. Bxf6 {[%emt 0:12:44]} Bxf6 {[%emt 0:01:38]} 11. Qxd6 {[%emt 0:00:29]} Bxc3 {[%emt 0:01:03]} 12. bxc3 {[%emt 0:10:47]} Qf6 {[%emt 0:05:19]} 13. Qg3 {[%emt 0:06:39]} b5 {[%emt 0:05:01]} 14. f4 {[%emt 0:01:15]} e5 {[%emt 0:01:32]} 15. f5 {[%emt 0:02:45]} Qe7 {[%emt 0:02:24]} 16. Qe3 {[%emt 0:01:24]} Bb7 {[%emt 0:15:37]} 17. Be2 {[%emt 0:02:02]} Rfc8 {[%emt 0:05:59]} 18. Rd5 {[%emt 0:10:07]} Na5 {[%emt 0:01:40]} 19. Nxa5 {[%emt 0:08:15]} Bxd5 {[%emt 0:03:35]} 20. exd5 {[%emt 0:01:07]} Qa3+ {[%emt 0:01:06]} 21. Kd2 {[%emt 0:00:05]} Qxa5 {[%emt 0:00:21]} 22. Qxe5 {[%emt 0:00:40]} Re8 {[%emt 0:02:27]} 23. Qd4 {[%emt 0:01:20]} Rac8 {[%emt 0:01:20]} 24. Bd3 {[%emt 0:03:56]} f6 {[%emt 0:01:14]} 25. a4 {[%emt 0:03:13]} Re5 {[%emt 0:00:42]} 26. axb5 {[%emt 0:00:38]} axb5 {[%emt 0:04:03]} 27. d6 {[%emt 0:05:25]} Qa8 {[%emt 0:01:29]} 28. Qf2 {[%emt 0:05:55]} Qc6 {[%emt 0:02:05]} 0-1

[Event "WSCC 65 Open 2017"]
[Site "?"]
[Date "2017.11.15"]
[Round "8"]
[White "Hartung-Nielsen, Jens"]
[Black "Pritchett, Craig W"]
[Result "0-1"]
[ECO "B21"]
[WhiteElo "2204"]
[BlackElo "2280"]
[PlyCount "98"]
[EventDate "2017.??.??"]
[EventType "swiss"]
[EventCountry "ITA"]
[SourceTitle "Acqui Terme"]
[TimeControl "40/5400+30:1800+30"]
[WhiteClock "0:19:26"]
[BlackClock "0:20:39"]

1. e4 {[%emt 0:00:00]} c5 {[%emt 0:00:21]} 2. d4 {[%emt 0:00:00]} cxd4 {[%emt 0:00:07]} 3. c3 {[%emt 0:00:00]} d3 {[%emt 0:03:30]} 4. Bxd3 {[%emt 0:00:04]} Nc6 {[%emt 0:01:37]} 5. c4 {[%emt 0:00:17]} g6 {[%emt 0:00:14]} 6. Nf3 {[%emt 0:01:14]} Bg7 {[%emt 0:00:13]} 7. O-O {[%emt 0:00:14]} d6 {[%emt 0:00:56]} 8. h3 {[%emt 0:00:05]} Nf6 {[%emt 0:00:21]} 9. Nc3 {[%emt 0:00:13]} O-O {[%emt 0:00:10]} 10. Be3 {[%emt 0:00:37]} b6 {[%emt 0:02:06]} 11. Qd2 {[%emt 0:03:49]} Bb7 {[%emt 0:05:44]} 12. Rac1 {[%emt 0:06:23]} Rc8 {[%emt 0:00:41]} 13. Bb1 {[%emt 0:05:57]} Nd7 {[%emt 0:07:03]} 14. Bh6 {[%emt 0:02:22]} Nde5 {[%emt 0:10:33]} 15. Nxe5 {[%emt 0:00:19]} dxe5 {[%emt 0:02:44]} 16. Qxd8 {[%emt 0:06:20]} Rfxd8 {[%emt 0:00:59]} 17. Bxg7 {[%emt 0:00:07]} Kxg7 {[%emt 0:00:05]} 18. Rfd1 {[%emt 0:00:40]} Nd4 {[%emt 0:02:35]} 19. Bd3 {[%emt 0:02:37]} e6 {[%emt 0:08:30]} 20. f3 {[%emt 0:06:39]} Kf8 {[%emt 0:03:08]} 21. Kf2 {[%emt 0:05:17]} Ke7 {[%emt 0:00:32]} 22. Bf1 {[%emt 0:08:33]} h5 {[%emt 0:07:06]} 23. h4 {[%emt 0:01:05]} f5 {[%emt 0:02:21]} 24. exf5 {[%emt 0:02:19]} exf5 {[%emt 0:02:44]} 25. Re1 {[%emt 0:02:11]} Kf6 {[%emt 0:00:26]} 26. b3 {[%emt 0:08:11]} Bc6 {[%emt 0:03:54]} 27. Rcd1 {[%emt 0:03:44]} Nc2 {[%emt 0:09:51]} 28. Rxd8 {[%emt 0:00:38]} Rxd8 {[%emt 0:00:06]} 29. Rd1 {[%emt 0:00:21]} Rxd1 {[%emt 0:02:24]} 30. Nxd1 {[%emt 0:00:05]} a5 {[%emt 0:04:13]} 31. Nc3 {[%emt 0:01:18]} e4 {[%emt 0:04:57]} 32. f4 {[%emt 0:09:12]} Ke6 {[%emt 0:03:50]} 33. Ke2 {[%emt 0:01:11]} Kd6 {[%emt 0:02:36]} 34. Kd2 {[%emt 0:00:28]} Nd4 {[%emt 0:01:25]} 35. Nd1 {[%emt 0:01:49]} Kc5 {[%emt 0:01:34]} 36. Kc3 {[%emt 0:07:29]} b5 {[%emt 0:00:52]} 37. Ne3 {[%emt 0:02:50]} b4+ {[%emt 0:01:13]} 38. Kb2 {[%emt 0:06:24]} a4 {[%emt 0:02:34]} 39. bxa4 {[%emt 0:04:00]} Bxa4 {[%emt 0:01:07]} 40. Kc1 {[%emt 0:01:26]} Be8 {[%emt 0:32:59]} 41. Kb2 {[%emt 0:32:17]} Ba4 {[%emt 0:00:00]} 42. Kc1 {[%emt 0:00:00]} Be8 {[%emt 0:00:00]} 43. Kb2 {[%emt 0:00:00]} Bf7 {[%emt 0:00:00]} 44. a3 {[%emt 0:00:00]} bxa3+ {[%emt 0:00:00]} 45. Kxa3 {[%emt 0:00:00]} Ne6 {[%emt 0:00:00]} 46. g3 {[%emt 0:00:00]} Kd4 {[%emt 0:00:00]} 47. Nd5 {[%emt 0:00:00]} Nc5 {[%emt 0:00:00]} 48. Nb6 {[%emt 0:00:00]} e3 {[%emt 0:00:00]} 49. Kb2 {[%emt 0:00:00]} Ne4 0-1

[Event "WSCC 65 Open 2017"]
[Site "?"]
[Date "2017.11.16"]
[Round "9"]
[White "Komljenovic, Davorin"]
[Black "Frick, Christoph"]
[Result "0-1"]
[ECO "D17"]
[WhiteElo "2379"]
[BlackElo "2230"]
[PlyCount "70"]
[EventDate "2017.??.??"]
[EventType "swiss"]
[EventCountry "ITA"]
[SourceTitle "Acqui Terme"]
[TimeControl "40/5400+30:1800+30"]
[WhiteClock "0:27:39"]
[BlackClock "0:36:15"]

1. d4 {[%emt 0:02:13]} d5 {[%emt 0:00:08]} 2. c4 {[%emt 0:00:04]} c6 {[%emt 0:00:04]} 3. Nf3 {[%emt 0:00:09]} Nf6 {[%emt 0:00:07]} 4. Nc3 {[%emt 0:00:03]} dxc4 {[%emt 0:00:11]} 5. a4 {[%emt 0:00:06]} Bf5 {[%emt 0:00:06]} 6. Ne5 {[%emt 0:06:02]} Nbd7 {[%emt 0:00:30]} 7. Nxc4 {[%emt 0:00:05]} Nb6 {[%emt 0:00:09]} 8. Ne5 {[%emt 0:00:13]} a5 {[%emt 0:00:11]} 9. f3 {[%emt 0:01:27]} Nfd7 {[%emt 0:00:05]} 10. Nd3 {[%emt 0:00:22]} Bxd3 {[%emt 0:00:55]} 11. Qxd3 {[%emt 0:00:06]} e5 {[%emt 0:01:19]} 12. dxe5 {[%emt 0:03:22]} Nxe5 {[%emt 0:02:40]} 13. Qe4 {[%emt 0:08:56]} Qe7 {[%emt 0:04:32]} 14. Be3 {[%emt 0:22:05]} Nbc4 {[%emt 0:14:14]} 15. Bd4 {[%emt 0:00:44]} f6 {[%emt 0:05:51]} 16. O-O-O {[%emt 0:07:10]} Qb4 {[%emt 0:15:10]} 17. Qc2 {[%emt 0:01:55]} Bc5 {[%emt 0:02:17]} 18. Na2 {[%emt 0:01:46]} Qb6 {[%emt 0:01:05]} 19. e3 {[%emt 0:00:26]} Bxd4 {[%emt 0:01:05]} 20. exd4 {[%emt 0:00:04]} Ne3 {[%emt 0:00:55]} 21. Qe2 {[%emt 0:09:02]} Nxd1 {[%emt 0:01:52]} 22. dxe5 {[%emt 0:00:03]} O-O-O {[%emt 0:00:44]} 23. g3 {[%emt 0:01:45]} Nf2 {[%emt 0:00:39]} 24. exf6 {[%emt 0:03:12]} Rhe8 {[%emt 0:03:47]} 25. Qc4 {[%emt 0:00:52]} gxf6 {[%emt 0:03:22]} 26. Rg1 {[%emt 0:01:37]} Nd3+ {[%emt 0:02:27]} 27. Bxd3 {[%emt 0:00:05]} Qxg1+ {[%emt 0:00:13]} 28. Kc2 {[%emt 0:00:06]} Qxh2+ {[%emt 0:00:43]} 29. Kb3 {[%emt 0:00:21]} Qxg3 {[%emt 0:00:55]} 30. Bxh7 {[%emt 0:02:09]} Qxf3+ {[%emt 0:00:59]} 31. Nc3 {[%emt 0:00:22]} Re3 {[%emt 0:00:46]} 32. Ka3 {[%emt 0:00:46]} f5 {[%emt 0:01:18]} 33. Qc5 {[%emt 0:00:16]} Rd5 {[%emt 0:01:41]} 34. Qf8+ {[%emt 0:00:39]} Kc7 {[%emt 0:00:19]} 35. Bg8 {[%emt 0:01:18]} Rxc3+ {[%emt 0:00:26]} 0-1

[Event "WSCC 65 Open 2017"]
[Site "?"]
[Date "2017.11.16"]
[Round "9"]
[White "Povah, Nigel E"]
[Black "Gutkin, Boris"]
[Result "1-0"]
[ECO "D00"]
[WhiteElo "2295"]
[BlackElo "2250"]
[PlyCount "51"]
[EventDate "2017.??.??"]
[EventType "swiss"]
[EventCountry "ITA"]
[SourceTitle "Acqui Terme"]
[TimeControl "40/5400+30:1800+30"]
[WhiteClock "0:18:20"]
[BlackClock "0:02:38"]

1. d4 {[%emt 0:00:00]} d5 {[%emt 0:00:24]} 2. Bg5 {[%emt 0:01:22]} c6 {[%emt 0:07:37]} 3. e3 {[%emt 0:03:04]} Qb6 {[%emt 0:07:57]} 4. Qc1 {[%emt 0:01:09]} Bf5 {[%emt 0:02:04]} 5. Nf3 {[%emt 0:00:34]} h6 {[%emt 0:01:28]} 6. Bh4 {[%emt 0:01:18]} e6 {[%emt 0:01:17]} 7. c4 {[%emt 0:00:52]} Nd7 {[%emt 0:11:17]} 8. Nc3 {[%emt 0:02:13]} Ngf6 {[%emt 0:03:03]} 9. Be2 {[%emt 0:04:34]} Be7 {[%emt 0:02:16]} 10. O-O {[%emt 0:05:03]} O-O {[%emt 0:04:46]} 11. h3 {[%emt 0:05:49]} Rfe8 {[%emt 0:02:13]} 12. c5 {[%emt 0:03:10]} Qd8 {[%emt 0:02:12]} 13. Bg3 {[%emt 0:01:21]} Ne4 {[%emt 0:02:06]} 14. Nxe4 {[%emt 0:05:03]} Bxe4 {[%emt 0:00:16]} 15. Nd2 {[%emt 0:08:30]} Bg6 {[%emt 0:01:26]} 16. b4 {[%emt 0:05:16]} Bf8 {[%emt 0:21:24]} 17. Qc3 {[%emt 0:02:58]} f6 {[%emt 0:03:33]} 18. Bd3 {[%emt 0:02:03]} Bxd3 {[%emt 0:01:44]} 19. Qxd3 {[%emt 0:00:06]} e5 {[%emt 0:00:27]} 20. b5 {[%emt 0:03:55]} Qa5 {[%emt 0:08:16]} 21. Rfb1 {[%emt 0:01:36]} Rac8 {[%emt 0:03:02]} 22. a4 {[%emt 0:10:05]} Qc7 {[%emt 0:04:33]} 23. a5 {[%emt 0:05:40]} Qd8 {[%emt 0:04:52]} 24. bxc6 {[%emt 0:05:20]} bxc6 {[%emt 0:00:07]} 25. Rb7 {[%emt 0:02:31]} Bxc5 {[%emt 0:02:02]} 26. Qf5 {[%emt 0:01:08]} 1-0